fUSD/lending_fUSD_20240819
["ID","MTS","AMOUNT","RATE_DAILY","PERIOD"]
[335305665,1724094638484,-9005.59263688,0.00010864,2]
[335305837,1724094640282,-547.53370969,9.941e-05,2]
[335306071,1724094643726,-499.79511551,9.941e-05,2]
[335306072,1724094643735,-679.43634971,0.00010183,2]
[335306082,1724094645997,-940.87063428,0.00010183,2]
[335306083,1724094646142,-1.51320822,0.00010183,2]
[335306084,1724094646182,-607.85385205,0.00010183,2]
[335306086,1724094770351,588.86,8.219e-05,2]
[335306089,1724094943319,23900.0,9.816e-05,2]
[335306090,1724094944463,23900.0,9.816e-05,2]
[335306091,1724094951026,1000.0,9.816e-05,2]
[335306092,1724094960721,15156.09439596,8.219e-05,2]
[335306093,1724094977155,889.69296972,9.816e-05,2]
[335306094,1724095022173,246.89,9.798e-05,2]
[335306095,1724095063151,1257.62857871,9.899e-05,2]
[335306096,1724095071385,839.2412,9.843e-05,2]
[335306097,1724095090182,271.1056769,9.899e-05,2]
[335306098,1724095094517,255.19609183,9.899e-05,2]
[335306099,1724095095057,5405.29278811,9.899e-05,2]
[335306100,1724095113189,155.0,9.899e-05,2]
[335306101,1724095212479,1074.99055937,9.899e-05,2]
[335306102,1724095212654,440.08291615,9.899e-05,2]
[335306103,1724095231632,624.79,8.219e-05,2]
[335306104,1724095334154,250.0,9.691e-05,2]
[335306105,1724095428866,167.74,9.656e-05,2]
[335306106,1724095429617,200.0,9.656e-05,2]
[335306107,1724095475791,23900.0,9.631e-05,2]
[335306108,1724095486341,164.26,7.728e-05,2]
[335306109,1724095514584,248.22,9.613e-05,2]
[335306110,1724095545332,150.0,9.888e-05,2]
[335306111,1724095561610,155.53678612,9.899e-05,2]
[335306112,1724095562013,155.0,9.367e-05,2]
[335306113,1724095582599,155.0,9.899e-05,2]
[335306114,1724095604976,155.0,9.899e-05,2]
[335306115,1724095639644,205.0,9.8e-05,2]
[335306118,1724095693092,593.55,8.219e-05,2]
[335306119,1724095700088,7846.7682,9.899e-05,2]
[335306135,1724095792915,10538.92504884,9.861e-05,2]
[335306139,1724095801127,155.0,9.899e-05,2]
[335306140,1724095807176,250.0,9.537e-05,2]
[335306145,1724095832111,-309.47911508,9.929e-05,2]
[335306147,1724095832121,-706.33815751,9.943e-05,2]
[335306154,1724095832178,-457.29170079,9.943e-05,2]
[335306156,1724095832191,-1508.69661,9.943e-05,2]
[335306158,1724095832203,-498.6429475,9.943e-05,2]
[335306160,1724095832214,-1026.39824093,9.943e-05,2]
[335306165,1724095832254,-11295.3625546,9.943e-05,2]
[335306167,1724095832264,-249.75,9.943e-05,2]
[335306169,1724095832273,-300.0,9.987e-05,2]
[335306171,1724095832282,-262.0,9.987e-05,2]
[335306173,1724095832291,-102.6474454,9.988e-05,2]
[335306175,1724095832302,-598.85331413,9.988e-05,2]
[335306201,1724095838129,-438.35543935,9.988e-05,2]
[335306202,1724095838138,-90.51517287,9.988e-05,2]
[335306215,1724095838702,-2296.29974423,9.988e-05,2]
[335306217,1724095838712,-687.47768044,9.988e-05,2]
[335306219,1724095838721,-159.60847032,9.999e-05,2]
[335306221,1724095838731,-3939.02654262,9.999e-05,2]
[335306223,1724095838739,-150.0,9.999e-05,2]
[335306225,1724095838749,-155.17072618,9.999e-05,2]
[335306227,1724095838758,-1050.0,0.0001,2]
[335306229,1724095838767,-456.00400065,0.0001,2]
[335306231,1724095838776,-2112.88261414,0.0001,2]
[335306233,1724095838787,-365.91742403,0.00010009,2]
[335306235,1724095838796,-1739.57017204,0.00010009,2]
[335306237,1724095838806,-164.42462269,0.00010009,2]
[335306239,1724095838816,-203.87793663,0.00010009,2]
[335306259,1724095838986,-485.32685972,0.00010009,2]
[335306261,1724095838999,-4680.16506567,0.00010009,2]
[335306263,1724095839009,-210.6709452,0.00010009,2]
[335306265,1724095839019,-600.70924328,0.00010026,2]
[335306267,1724095839029,-432.47832469,0.00010026,2]
[335306269,1724095839038,-193.24,0.00010062,2]
[335306271,1724095839048,-499.99,0.00010062,2]
[335306273,1724095839058,-2342.45587798,0.00010097,2]
[335306275,1724095839067,-454.71526494,0.00010097,2]
[335306277,1724095839076,-629.05909233,0.00010097,2]
[335306280,1724095839085,-999.99,0.00010172,2]
[335306281,1724095839099,-60524.6144839,0.00010173,2]
[335306283,1724095839108,-299.99,0.00010173,2]
[335306285,1724095839117,-911.59,0.00010182,2]
[335306287,1724095839125,-599.74,0.00010182,2]
[335306289,1724095839135,-1081.78,0.00010182,2]
[335306291,1724095839144,-150.99,0.00010182,2]
[335306293,1724095839153,-162.82516724,0.00010183,2]
[335306295,1724095839162,-170.5756834,0.00010183,2]
[335306297,1724095839172,-289.95309064,0.00010183,2]
[335306299,1724095839182,-181.78516987,0.00010183,2]
[335306301,1724095839191,-1051.05102404,0.00010183,2]
[335306303,1724095839200,-3101.93,0.00010183,2]
[335306305,1724095839210,-51093.3,0.00010183,2]
[335306307,1724095839219,-500.0,0.00010264,2]
[335306309,1724095839228,-500.0,0.00010264,2]
[335306311,1724095839238,-352.6593,0.00010405,2]
[335306313,1724095839247,-593.55,0.00010451,2]
[335306315,1724095839257,-322.14,0.00010464,2]
[335306317,1724095839266,-163.6,0.00010471,2]
[335306319,1724095839275,-155.0,0.00010471,2]
[335306321,1724095839284,-347.79523898,0.00010471,2]
[335306322,1724095839294,-1298.58278501,0.00010471,2]
[335306323,1724095839304,-543.73403565,0.00010471,2]
[335306324,1724095839313,-261.41239826,0.00010471,2]
[335306325,1724095839323,-270.62814649,0.00010471,2]
[335306326,1724095839332,-3875.99346564,0.00010471,2]
[335306327,1724095839341,-155.0,0.00010471,2]
[335306328,1724095839350,-218.91005949,0.00010471,2]
[335306329,1724095839359,-157.70095368,0.00010471,2]
[335306330,1724095839368,-380.32741541,0.00010471,2]
[335306331,1724095839377,-649.86351287,0.00010471,2]
[335306332,1724095839386,-150.99,0.00010475,2]
[335306333,1724095839395,-4491.2,0.00010476,2]
[335306334,1724095839404,-4148.35,0.00010476,2]
[335306335,1724095839413,-5321.19,0.00010505,2]
[335306336,1724095839422,-236.34424982,0.00010505,2]
[335306337,1724095839431,-164.40260801,0.00010505,2]
[335306338,1724095839440,-328.33768382,0.00010505,2]
[335306339,1724095839449,-529.01492508,0.00010505,2]
[335306340,1724095839459,-357.45302385,0.00010566,2]
[335306342,1724095839468,-367.98538424,0.00010566,2]
[335306344,1724095839477,-155.0,0.00010566,2]
[335306346,1724095839486,-155.0,0.00010566,2]
[335306348,1724095839495,-1243.4245,0.00010589,2]
[335306350,1724095839505,-950.2599,0.00010589,2]
[335306352,1724095839514,-1000.0,0.00010688,2]
[335306354,1724095839523,-500.0,0.00010688,2]
[335306356,1724095839532,-2962.7443,0.00010689,2]
[335306358,1724095839541,-71545.06403196,0.00010689,2]
[335306377,1724095839715,-1079.34910173,0.00010689,2]
[335306380,1724095839730,-9987.90608371,0.00010689,2]
[335306382,1724095839742,-4849.9634826,0.00010689,2]
[335306384,1724095839752,-500.0,0.00010724,2]
[335306386,1724095839761,-1592.06824958,0.0001076,2]
[335306388,1724095839771,-568.20021,0.0001076,2]
[335306390,1724095839780,-2185.65172,0.0001076,2]
[335306392,1724095839790,-568.20021,0.0001078,2]
[335306395,1724095839802,-7817.21270955,0.00010788,2]
[335306397,1724095839818,-914.81898883,0.00010788,2]
[335306399,1724095839829,-1136.8850001,0.00010788,2]
[335306401,1724095839840,-796.44791203,0.00010788,2]
[335306404,1724095839851,-424.5,0.00010788,2]
[335306406,1724095839862,-3060.15071266,0.00010788,2]
[335306408,1724095839872,-618.75914436,0.00010788,2]
[335306410,1724095839883,-5200.0,0.00010788,2]
[335306413,1724095839900,-420.0,0.00010788,2]
[335306415,1724095839911,-9025.26773247,0.00010788,2]
[335306417,1724095839920,-11474.6866,0.00010788,2]
[335306419,1724095839930,-730.0594,0.00010788,2]
[335306421,1724095839939,-1307.16629114,0.00010788,2]
[335306423,1724095839950,-797.53240886,0.00010788,2]
[335306425,1724095839959,-372.02159116,0.00010788,2]
[335306428,1724095839978,-333.56460884,0.00010788,2]
[335306430,1724095839987,-221.55993051,0.00010788,2]
[335306432,1724095839996,-30.02287618,0.00010788,2]
[335306435,1724095840008,-373.59450961,0.00010788,2]
[335306437,1724095840019,-96.38261421,0.00010788,2]
[335306439,1724095840029,-1004.91,0.00010788,2]
[335306441,1724095840039,-359.88808667,0.0001079,2]
[335306443,1724095840049,-151.0,0.00010798,2]
[335306445,1724095840058,-151.0,0.00010798,2]
[335306447,1724095840067,-151.0,0.00010798,2]
[335306449,1724095840077,-151.0,0.00010798,2]
[335306451,1724095840087,-164.281101,0.00010798,2]
[335306453,1724095840100,-151.0,0.00010798,2]
[335306455,1724095840110,-151.0,0.00010798,2]
[335306457,1724095840119,-151.0,0.00010798,2]
[335306459,1724095840128,-151.0,0.00010798,2]
[335306461,1724095840138,-151.0,0.00010798,2]
[335306464,1724095840147,-151.0,0.00010798,2]
[335306466,1724095840156,-151.272019,0.00010798,2]
[335306468,1724095840165,-399.023795,0.00010798,2]
[335306470,1724095840176,-151.0,0.00010798,2]
[335306472,1724095840186,-399.023795,0.00010798,2]
[335306475,1724095840195,-151.0,0.00010798,2]
[335306476,1724095840204,-151.0,0.00010798,2]
[335306478,1724095840214,-151.0,0.00010798,2]
[335306480,1724095840223,-151.0,0.00010798,2]
[335306482,1724095840232,-151.0,0.00010798,2]
[335306484,1724095840241,-151.0,0.00010798,2]
[335306486,1724095840250,-151.0,0.00010798,2]
[335306488,1724095840261,-151.0,0.00010798,2]
[335306490,1724095840270,-151.0,0.00010798,2]
[335306492,1724095840279,-170.623801,0.00010798,2]
[335306494,1724095840288,-151.0,0.00010798,2]
[335306496,1724095840297,-151.0,0.00010798,2]
[335306498,1724095840306,-151.0,0.00010798,2]
[335306500,1724095840315,-151.0,0.00010798,2]
[335306502,1724095840324,-151.0,0.00010798,2]
[335306504,1724095840333,-151.0,0.00010798,2]
[335306506,1724095840343,-151.0,0.00010798,2]
[335306509,1724095840352,-151.0,0.00010798,2]
[335306511,1724095840361,-230.880473,0.00010798,2]
[335306513,1724095840370,-6490.71431512,0.00010798,2]
[335306529,1724095840518,-155.0,0.00010097,2]
[335306531,1724095840527,-212.61607394,0.00010471,2]
[335306533,1724095840537,-203.41395605,0.00010471,2]
[335306535,1724095840546,-4613.17178619,0.00010798,2]
[335306537,1724095840558,-402.32979869,0.00010798,2]
[335306539,1724095840567,-1102.08194231,0.00010798,2]
[335306542,1724095840587,-11635.80887261,0.00010798,2]
[335306545,1724095840599,-859.60446392,0.00010798,2]
[335306547,1724095840610,-1034.355,0.00010798,2]
[335306549,1724095840621,-2198.49212684,0.00010798,2]
[335306551,1724095840633,-496.786,0.00010798,2]
[335306553,1724095840644,-359.44640036,0.00010798,2]
[335306555,1724095840655,-998.05623126,0.00010798,2]
[335306558,1724095840666,-1273.216,0.00010798,2]
[335306560,1724095840678,-895.1639627,0.00010798,2]
[335306562,1724095840687,-97.41159066,0.00010798,2]
[335306564,1724095840702,-886.33815217,0.00010798,2]
[335306567,1724095840724,-297.60389455,0.00010505,2]
[335306569,1724095840734,-285.71965717,0.00010798,2]
[335306571,1724095840743,-9994.0787,0.00010799,2]
[335306573,1724095840752,-5583.0098,0.00010799,2]
[335306575,1724095840762,-1856.89085908,0.000108,2]
[335306577,1724095840771,-1578.72205212,0.000108,2]
[335306579,1724095840782,-401.51974171,0.000108,2]
[335306581,1724095840791,-359.88808664,0.00010818,2]
[335306583,1724095840801,-833.93,0.00010819,2]
[335306585,1724095840810,-500.0,0.00010819,2]
[335306587,1724095840819,-500.0,0.00010819,2]
[335306589,1724095840829,-500.0,0.00010819,2]
[335306591,1724095840838,-500.0,0.00010819,2]
[335306593,1724095840848,-500.0,0.00010819,2]
[335306595,1724095840858,-500.0,0.00010819,2]
[335306597,1724095840867,-500.0,0.00010819,2]
[335306599,1724095840876,-500.0,0.00010819,2]
[335306601,1724095840886,-500.0,0.00010819,2]
[335306603,1724095840896,-500.0,0.00010819,2]
[335306605,1724095840905,-500.0,0.00010819,2]
[335306607,1724095840914,-500.0,0.00010819,2]
[335306609,1724095840924,-595.89,0.00010819,2]
[335306611,1724095840933,-568.20021,0.0001082,2]
[335306613,1724095840943,-359.88808664,0.00010845,2]
[335306615,1724095840952,-151.0,0.00010852,2]
[335306617,1724095840963,-151.0,0.00010852,2]
[335306619,1724095840973,-151.0,0.00010852,2]
[335306621,1724095840982,-151.0,0.00010852,2]
[335306623,1724095840991,-151.0,0.00010852,2]
[335306625,1724095841001,-292.632919,0.00010852,2]
[335306627,1724095841010,-151.0,0.00010852,2]
[335306629,1724095841019,-152.600083,0.00010852,2]
[335306631,1724095841028,-568.20022,0.0001086,2]
[335306633,1724095841037,-151.0,0.00010861,2]
[335306635,1724095841046,-151.0,0.00010861,2]
[335306637,1724095841055,-151.0,0.00010861,2]
[335306639,1724095841065,-151.0,0.00010861,2]
[335306641,1724095841074,-151.0,0.00010861,2]
[335306643,1724095841083,-151.0,0.00010861,2]
[335306645,1724095841095,-151.0,0.00010861,2]
[335306647,1724095841104,-284.62213,0.00010861,2]
[335306649,1724095841113,-3726.0,0.00010862,2]
[335306651,1724095841122,-1755.248,0.00010862,2]
[335306653,1724095841132,-11164.17,0.00010862,2]
[335306655,1724095841141,-1673.0,0.00010862,2]
[335306657,1724095841151,-810.0,0.00010862,2]
[335306659,1724095841160,-150.0,0.00010862,2]
[335306661,1724095841170,-556.0,0.00010862,2]
[335306662,1724095841179,-446.0,0.00010862,2]
[335306664,1724095841188,-200.0,0.00010862,2]
[335306666,1724095841198,-151.0,0.00010864,2]
[335306669,1724095841208,-151.0,0.00010864,2]
[335306670,1724095841219,-151.0,0.00010864,2]
[335306672,1724095841228,-151.0,0.00010864,2]
[335306674,1724095841237,-151.0,0.00010864,2]
[335306676,1724095841246,-151.0,0.00010864,2]
[335306678,1724095841255,-151.0,0.00010864,2]
[335306680,1724095841265,-151.0,0.00010864,2]
[335306682,1724095841274,-151.0,0.00010864,2]
[335306684,1724095841283,-568.20022,0.00010864,2]
[335306686,1724095841292,-568.20021,0.00010864,2]
[335306688,1724095841301,-359.88808664,0.00010873,2]
[335306690,1724095841311,-4745.46359902,0.0001088,2]
[335306692,1724095841320,-151.0,0.00010888,2]
[335306694,1724095841329,-151.0,0.00010888,2]
[335306696,1724095841339,-151.0,0.00010888,2]
[335306698,1724095841347,-151.0,0.00010888,2]
[335306700,1724095841357,-151.0,0.00010888,2]
[335306702,1724095841366,-151.0,0.00010888,2]
[335306704,1724095841376,-151.0,0.00010888,2]
[335306705,1724095841385,-151.0,0.00010888,2]
[335306707,1724095841395,-151.0,0.00010888,2]
[335306709,1724095841404,-152.679018,0.00010888,2]
[335306711,1724095841413,-182.746298,0.00010888,2]
[335306712,1724095841422,-151.0,0.00010888,2]
[335306714,1724095841432,-182.746298,0.00010888,2]
[335306716,1724095841441,-151.0,0.00010888,2]
[335306718,1724095841450,-486.24581662,0.00010888,2]
[335306720,1724095841460,-10198.056,0.00010889,2]
[335306722,1724095841473,-163.67346564,0.0001089,2]
[335306724,1724095841482,-833.93,0.00010897,2]
[335306725,1724095841491,-382.28562988,0.00010897,2]
[335306727,1724095841501,-500.0,0.00010897,2]
[335306729,1724095841510,-500.0,0.00010897,2]
[335306731,1724095841519,-500.0,0.00010897,2]
[335306732,1724095841528,-500.0,0.00010897,2]
[335306734,1724095841537,-500.0,0.00010897,2]
[335306736,1724095841546,-500.0,0.00010897,2]
[335306738,1724095841555,-500.0,0.00010897,2]
[335306739,1724095841564,-500.0,0.00010897,2]
[335306741,1724095841574,-500.0,0.00010897,2]
[335306743,1724095841583,-500.0,0.00010897,2]
[335306745,1724095841592,-500.0,0.00010897,2]
[335306746,1724095841602,-595.89,0.00010897,2]
[335306748,1724095841611,-500.0,0.00010897,2]
[335306750,1724095841620,-500.0,0.00010897,2]
[335306752,1724095841629,-500.0,0.00010897,2]
[335306753,1724095841638,-500.0,0.00010897,2]
[335306755,1724095841647,-500.0,0.00010897,2]
[335306757,1724095841656,-1004.91,0.00010897,2]
[335306758,1724095841665,-151.0,0.00010898,2]
[335306760,1724095841675,-151.0,0.00010898,2]
[335306762,1724095841685,-151.0,0.00010898,2]
[335306764,1724095841694,-151.0,0.00010898,2]
[335306765,1724095841703,-151.0,0.00010898,2]
[335306767,1724095841713,-151.0,0.00010898,2]
[335306769,1724095841722,-151.0,0.00010898,2]
[335306770,1724095841732,-151.0,0.00010898,2]
[335306772,1724095841742,-151.0,0.00010898,2]
[335306774,1724095841753,-151.0,0.00010898,2]
[335306776,1724095841762,-151.0,0.00010898,2]
[335306778,1724095841772,-151.0,0.00010898,2]
[335306780,1724095841782,-151.0,0.00010898,2]
[335306781,1724095841791,-151.0,0.00010898,2]
[335306783,1724095841800,-151.0,0.00010898,2]
[335306785,1724095841810,-151.0,0.00010898,2]
[335306787,1724095841819,-151.0,0.00010898,2]
[335306789,1724095841829,-151.0,0.00010898,2]
[335306790,1724095841838,-155.383965,0.00010898,2]
[335306792,1724095841848,-151.0,0.00010898,2]
[335306794,1724095841858,-151.0,0.00010898,2]
[335306796,1724095841867,-151.0,0.00010898,2]
[335306798,1724095841876,-151.0,0.00010898,2]
[335306799,1724095841886,-151.0,0.00010898,2]
[335306801,1724095841896,-151.0,0.00010898,2]
[335306803,1724095841905,-151.0,0.00010898,2]
[335306804,1724095841915,-151.0,0.00010898,2]
[335306806,1724095841925,-151.0,0.00010898,2]
[335306808,1724095841938,-151.0,0.00010898,2]
[335306810,1724095841948,-151.0,0.00010898,2]
[335306812,1724095841958,-151.0,0.00010898,2]
[335306814,1724095841968,-151.0,0.00010898,2]
[335306816,1724095841978,-151.0,0.00010898,2]
[335306817,1724095841987,-151.0,0.00010898,2]
[335306819,1724095841997,-151.0,0.00010898,2]
[335306821,1724095842006,-151.0,0.00010898,2]
[335306823,1724095842016,-150.88982254,0.00010898,2]
[335306825,1724095842030,-0.11017746,0.00010898,2]
[335306827,1724095842040,-151.0,0.00010898,2]
[335306828,1724095842050,-151.0,0.00010898,2]
[335306830,1724095842059,-151.0,0.00010898,2]
[335306832,1724095842069,-151.0,0.00010898,2]
[335306834,1724095842079,-151.0,0.00010898,2]
[335306836,1724095842089,-151.0,0.00010898,2]
[335306838,1724095842103,-151.0,0.00010898,2]
[335306839,1724095842112,-151.0,0.00010898,2]
[335306841,1724095842122,-151.0,0.00010898,2]
[335306843,1724095842131,-151.0,0.00010898,2]
[335306845,1724095842142,-151.0,0.00010898,2]
[335306846,1724095842152,-151.0,0.00010898,2]
[335306848,1724095842161,-182.746298,0.00010898,2]
[335306850,1724095842172,-151.0,0.00010898,2]
[335306852,1724095842182,-182.746298,0.00010898,2]
[335306853,1724095842191,-151.0,0.00010898,2]
[335306855,1724095842201,-266.762262,0.00010898,2]
[335306857,1724095842212,-151.0,0.00010898,2]
[335306859,1724095842223,-151.0,0.00010898,2]
[335306861,1724095842232,-151.0,0.00010898,2]
[335306862,1724095842242,-151.0,0.00010898,2]
[335306864,1724095842251,-151.0,0.00010898,2]
[335306866,1724095842260,-151.0,0.00010898,2]
[335306868,1724095842270,-151.0,0.00010898,2]
[335306870,1724095842280,-193.616902,0.00010898,2]
[335306871,1724095842290,-151.0,0.00010898,2]
[335306873,1724095842300,-190.735722,0.00010898,2]
[335306875,1724095842310,-151.0,0.00010898,2]
[335306877,1724095842322,-151.0,0.00010898,2]
[335306879,1724095842331,-399.023795,0.00010898,2]
[335306881,1724095842341,-399.023795,0.00010898,2]
[335306882,1724095842351,-151.0,0.00010898,2]
[335306884,1724095842361,-399.023795,0.00010898,2]
[335306886,1724095842371,-399.023795,0.00010898,2]
[335306888,1724095842380,-151.0,0.00010898,2]
[335306890,1724095842390,-167.901428,0.00010898,2]
[335306891,1724095842399,-151.0,0.00010898,2]
[335306893,1724095842410,-151.0,0.00010898,2]
[335306895,1724095842419,-151.0,0.00010898,2]
[335306897,1724095842429,-151.0,0.00010898,2]
[335306899,1724095842439,-151.0,0.00010898,2]
[335306900,1724095842448,-151.0,0.00010898,2]
[335306902,1724095842459,-151.0,0.00010898,2]
[335306904,1724095842470,-151.0,0.00010898,2]
[335306906,1724095842480,-151.0,0.00010898,2]
[335306908,1724095842489,-204.276609,0.00010898,2]
[335306910,1724095842499,-151.0,0.00010898,2]
[335306912,1724095842509,-151.0,0.00010898,2]
[335306913,1724095842518,-151.0,0.00010898,2]
[335306915,1724095842529,-151.0,0.00010898,2]
[335306917,1724095842540,-151.0,0.00010898,2]
[335306919,1724095842550,-151.0,0.00010898,2]
[335306921,1724095842560,-151.420054,0.00010898,2]
[335306923,1724095842569,-151.0,0.00010898,2]
[335306925,1724095842579,-151.0,0.00010898,2]
[335306927,1724095842589,-151.0,0.00010898,2]
[335306929,1724095842599,-151.0,0.00010898,2]
[335306931,1724095842609,-151.0,0.00010898,2]
[335306932,1724095842619,-151.0,0.00010898,2]
[335306934,1724095842629,-151.361386,0.00010898,2]
[335306936,1724095842638,-151.0,0.00010898,2]
[335306938,1724095842648,-39183.36465158,0.00010898,2]
[335306940,1724095842666,-933.43431332,0.00010898,2]
[335306943,1724095842684,-4448.1026303,0.00010898,2]
[335306961,1724095842870,-2466.13155549,0.00010898,2]
[335306965,1724095842882,-1032.75,0.00010898,2]
[335306968,1724095842893,-460.56973873,0.00010898,2]
[335306971,1724095842905,-971.108,0.00010898,2]
[335306974,1724095842925,-2676.83872446,0.00010898,2]
[335306977,1724095842936,-18315.00000001,0.00010898,2]
[335306979,1724095842948,-1626.45291562,0.00010898,2]
[335307009,1724095843298,-151.0,0.00010798,2]
[335307011,1724095843308,-151.0,0.00010898,2]
[335307013,1724095843318,-151.0,0.00010898,2]
[335307015,1724095843330,-5568.9,0.00010898,2]
[335307017,1724095843346,-1664.07607832,0.00010898,2]
[335307032,1724095843502,-7805.61716964,0.00010898,2]
[335307034,1724095843513,-676.96199,0.00010898,2]
[335307237,1724095846147,-31881.23665284,0.00010898,2]
[335307242,1724095846194,-795.72649657,0.00010898,2]
[335307245,1724095846206,-1122.59869064,0.00010898,2]
[335307247,1724095846217,-258.90026698,0.00010898,2]
[335307248,1724095846228,-253.90374581,0.00010898,2]
[335307249,1724095846239,-3879.71035202,0.00010898,2]
[335307250,1724095846250,-2264.43353879,0.00010898,2]
[335307251,1724095846285,-37811.35699527,0.00010898,2]
[335307252,1724095846296,-4481.46949273,0.00010898,2]
[335307253,1724095846335,-315.00000008,0.00010898,2]
[335307254,1724095846347,-2133.67541036,0.00010898,2]
[335307255,1724095846358,-1011.36027468,0.00010898,2]
[335307256,1724095846387,-726.52366915,0.00010898,2]
[335307257,1724095846398,-965.71228603,0.00010898,2]
[335307258,1724095846409,-6540.0001936,0.00010898,2]
[335307259,1724095846420,-3567.11591837,0.00010898,2]
[335307260,1724095846435,-2595.742,0.00010898,2]
[335307262,1724096203039,599.93,8.219e-05,2]
[335307263,1724096205052,2079.331063,9.86e-05,2]
[335307264,1724096235271,1099.36692642,9.86e-05,2]
[335307265,1724096236845,760.65799889,9.86e-05,2]
[335307266,1724096246315,291.80613083,9.86e-05,2]
[335307267,1724096259096,159.14561955,9.86e-05,2]
[335307268,1724096291163,250.0,9.865e-05,2]
[335307269,1724096354458,760.39317433,9.865e-05,2]
[335307270,1724096372298,193.28,9.87e-05,2]
[335307274,1724096422426,238.07,9.86e-05,2]
[335307275,1724096466209,23900.0,9.838e-05,2]
[335307276,1724096478426,248.87,9.861e-05,2]
[335307277,1724096527177,150.0,9.878e-05,2]
[335307278,1724096554249,693.0340361,9.861e-05,2]
[335307281,1724096764927,250.0,9.824e-05,2]
[335307282,1724096776837,601.26,8.219e-05,2]
[335307283,1724096863908,193.28,9.826e-05,2]
[335307284,1724096897392,2842.93384209,9.899e-05,2]
[335307285,1724096934411,23900.0,9.8e-05,2]
[335307292,1724096996471,15514.75753766,9.86e-05,2]
[335307293,1724097002501,910.0,9.813e-05,2]
[335307297,1724097032274,-178.24099476,9.91e-05,2]
[335307298,1724097032283,-171.79,9.928e-05,2]
[335307299,1724097032293,-260.7,9.957e-05,2]
[335307300,1724097032302,-270.75617551,9.99e-05,2]
[335307301,1724097032312,-149.87382449,9.99e-05,2]
[335307302,1724097032322,-1139.85619888,0.00010009,2]
[335307303,1724097032332,-309.47911508,0.00010026,2]
[335307304,1724097032342,-155.0,0.00010026,2]
[335307305,1724097032352,-155.07645946,0.00010097,2]
[335307306,1724097032361,-454.71526494,0.00010097,2]
[335307307,1724097032370,-256.63,0.00010192,2]
[335307308,1724097032380,-329.57,0.00010192,2]
[335307309,1724097032389,-199.12,0.00010192,2]
[335307310,1724097032399,-421.36,0.00010241,2]
[335307311,1724097032408,-150.0,0.00010247,2]
[335307312,1724097032419,-500.0,0.00010264,2]
[335307313,1724097032430,-500.0,0.00010264,2]
[335307314,1724097032439,-601.26,0.00010466,2]
[335307315,1724097032450,-790.05041053,0.00010471,2]
[335307316,1724097032475,-345.95958947,0.00010471,2]
[335307317,1724097032485,-687.47768044,0.00010505,2]
[335307318,1724097032494,-499.99,0.00010566,2]
[335307319,1724097032503,-1244.2212971,0.00010566,2]
[335307320,1724097032514,-239.3087029,0.00010566,2]
[335307321,1724097032524,-649.10163431,0.00010566,2]
[335307322,1724097032536,-601.78836569,0.00010566,2]
[335307323,1724097032547,-957.48,0.000106,2]
[335307324,1724097032556,-150.0,0.00010621,2]
[335307325,1724097032565,-150.440642,0.00010622,2]
[335307326,1724097032573,-1340.32,0.00010622,2]
[335307327,1724097032583,-299.99,0.00010622,2]
[335307329,1724097032592,-500.0,0.00010688,2]
[335307330,1724097032601,-276.2029998,0.00010688,2]
[335307331,1724097032612,-223.7970002,0.00010688,2]
[335307332,1724097032621,-500.0,0.00010688,2]
[335307333,1724097032631,-500.0,0.00010688,2]
[335307334,1724097032640,-500.0,0.00010688,2]